bitfinex/quotes_ETHUSD_20250620
["timestamp","ask_amount","ask_price","bid_price","bid_amount"]
[1750449976818,10.0574,2426.2,2426.0,0.4145351]
[1750449977039,0.76436471,2426.1,2425.9,4.12203853]
[1750449977335,0.0574,2425.9,2425.7,4.12244407]
[1750449977538,8.71524514,2426.0,2425.6,4.12260218]
[1750449977539,2.68664514,2425.8,2425.6,4.12260218]
[1750449977704,2.68664514,2425.8,2425.2,0.7649]
[1750449977705,7.91505873,2425.7,2425.2,0.7649]
[1750449977906,0.76509498,2425.6,2425.5,4.12275463]
[1750449978104,10.82249498,2425.6,2425.4,4.12294761]
[1750449978302,0.76509084,2425.5,2425.4,4.12294761]
[1750449978770,0.76510687,2425.5,2425.4,4.12294761]
[1750449978941,0.76510724,2425.5,2425.2,4.12329143]
[1750449979127,0.0574,2425.3,2424.7,0.8261]
[1750449979444,2.74455236,2425.2,2425.1,4.12354129]
[1750449979738,2.3046053,2425.2,2425.1,4.12354129]
[1750449979939,2.68662971,2425.2,2425.1,4.12354129]
[1750449980362,9.83764516,2425.2,2425.1,4.12354129]
[1750449980651,9.073,2425.2,2425.1,4.12354129]
[1750449980813,9.45530715,2425.2,2425.1,4.12354129]
[1750449981144,9.45531038,2425.2,2425.1,4.12354129]
[1750449981309,9.83763182,2425.2,2425.1,4.12354129]
[1750449981514,9.83764298,2425.2,2425.1,4.12354129]
[1750449982341,0.76464766,2425.2,2425.1,4.94826309]
[1750449982548,0.38232383,2425.2,2425.1,5.70076309]
[1750449983148,0.38232383,2425.2,2425.1,4.12354129]
[1750449983328,0.43972383,2425.2,2424.5,0.7672]
[1750449983528,0.38232565,2425.1,2425.0,4.12371134]
[1750449983717,0.0574,2425.1,2425.0,4.12371134]
[1750449984052,0.43987415,2425.1,2425.0,4.12371134]
[1750449984549,0.43987415,2425.1,2424.8,4.53239028]
[1750449984750,9.45602454,2425.0,2424.9,4.12372855]
[1750449985353,9.45602409,2425.0,2424.9,4.12372855]
[1750449985655,9.4560168,2425.0,2424.9,4.12372855]
[1750449985856,9.45601708,2425.0,2424.9,4.12372855]
[1750449986453,1.916,2425.4,2425.3,4.12320125]
[1750449986616,12.6799745,2425.4,2425.3,4.12320125]
[1750449986811,12.73737572,2425.4,2425.2,4.12330074]
[1750449987011,0.43939732,2425.3,2425.2,4.12330074]
[1750449987250,10.82140462,2425.3,2425.2,4.12330074]
[1750449987429,10.43939732,2425.3,2425.2,4.12330074]
[1750449987632,1.25639732,2425.3,2425.2,4.12330074]
[1750449988022,10.32339732,2425.3,2425.2,4.12330074]
[1750449988847,0.0574,2425.2,2425.1,4.12346741]
[1750449989154,0.43939732,2425.2,2425.1,4.12346741]
[1750449989450,0.43939732,2425.2,2424.8,0.41181954]
[1750449989647,0.0574,2425.0,2424.9,4.12380653]
[1750449989953,7.2084,2425.0,2424.9,4.12380653]
[1750449990468,7.2084,2425.0,2424.6,4.12431289]
[1750449990648,7.2084,2425.0,2424.8,4.12404291]
[1750449991036,7.151,2425.0,2424.9,4.12388139]
[1750449992571,11.917,2425.3,2425.2,4.12337126]
[1750449992919,11.917,2425.3,2425.2,4.53179383]
[1750449993916,9.067,2425.3,2425.2,4.53179383]
[1750449994169,9.067,2425.3,2425.2,4.12337126]
[1750449994337,0.0574,2425.5,2425.3,4.12314353]
[1750449994540,9.067,2425.4,2425.3,4.12314353]
[1750449994738,19.067,2425.4,2425.3,4.12314353]
[1750449996820,19.066,2425.4,2425.3,4.12314353]
[1750449997873,0.7878,2426.4,2425.3,1.61997983]
[1750449998044,7.2064,2426.3,2425.5,0.814]
[1750449998245,7.2064,2426.3,2426.2,4.12167175]
[1750449998434,17.2064,2426.3,2426.2,4.12167175]
[1750449998789,7.149,2426.3,2426.2,4.12167175]
[1750449999065,2.7048,2426.4,2426.3,4.12150187]
[1750449999269,19.066,2426.4,2426.3,4.12150187]
[1750449999428,7.149,2426.4,2425.9,0.7546]
[1750449999628,7.2064,2426.4,2426.3,4.12150187]
[1750450000865,10.0574,2426.3,2425.9,0.7546]
[1750450001065,10.0574,2426.3,2426.1,4.12173739]
[1750450002134,10.0574,2426.3,2426.2,4.12167175]
[1750450002538,10.44160404,2426.3,2426.2,4.12167175]
[1750450002940,0.0574,2426.2,2425.9,4.12208997]
[1750450003238,10.0,2426.0,2425.9,4.12208997]
[1750450003445,12.30020404,2426.0,2425.9,4.12208997]
[1750450005066,12.30051577,2426.0,2425.5,4.12277485]
[1750450005266,7.58791577,2425.9,2425.7,4.12249867]
[1750450005578,0.38451577,2425.8,2425.7,4.12249867]
[1750450005982,0.76910069,2425.8,2425.7,4.12249867]
[1750450006883,0.76922673,2425.8,2425.7,4.12249867]
[1750450007071,0.38451577,2425.8,2425.7,4.12249867]
[1750450007254,0.82897602,2425.8,2425.6,4.12256323]
[1750450007459,7.91527602,2425.7,2425.6,4.12256323]
[1750450007762,7.53076085,2425.7,2425.6,4.12256323]
[1750450007970,7.91552488,2425.7,2425.6,4.12256323]
[1750450008282,19.44571709,2425.7,2425.6,4.12256323]
[1750450008485,0.38471709,2425.7,2425.6,5.71190317]
[1750450008655,10.0,2426.2,2426.1,4.12184163]
[1750450008978,10.76935002,2426.2,2426.1,4.12184163]
[1750450009778,10.76931501,2426.2,2426.1,4.12184163]
[1750450010202,10.76928935,2426.2,2426.1,4.12184163]
[1750450011302,10.7692754,2426.2,2426.1,4.12184163]
[1750450011864,10.3846376,2426.2,2426.1,4.12184163]
[1750450012063,10.76928906,2426.2,2426.1,4.12184163]
[1750450012392,10.76928206,2426.2,2426.1,4.12184163]
[1750450012558,10.76925857,2426.2,2426.1,4.12184163]
[1750450013204,10.7692586,2426.2,2426.1,4.12184163]
[1750450013404,10.76925861,2426.2,2426.1,4.12184163]
[1750450013852,7.145,2426.3,2426.1,4.12184163]
[1750450013966,17.145,2426.3,2426.2,4.12167175]
[1750450014166,10.76927808,2426.3,2426.2,4.12167175]
[1750450014396,19.8292836,2426.3,2426.2,4.12167175]
[1750450014906,19.82928067,2426.3,2426.2,4.12167175]
[1750450015404,19.8292752,2426.3,2426.2,4.12167175]
[1750450015770,19.82923295,2426.3,2426.2,4.12167175]
[1750450015967,19.82923453,2426.3,2426.2,4.12167175]
[1750450016667,19.82920266,2426.3,2426.2,4.12167175]
[1750450017203,19.06,2426.3,2426.2,4.12167175]
[1750450017513,19.82920134,2426.3,2426.2,4.12167175]
[1750450018082,19.8292303,2426.3,2426.2,4.12167175]
[1750450018402,19.88893439,2426.3,2426.2,4.12167175]
[1750450018603,19.88892682,2426.3,2426.2,4.12167175]
[1750450018804,19.82922682,2426.3,2426.2,4.12167175]
[1750450019209,19.82925033,2426.3,2426.2,4.12167175]
[1750450019382,19.82925271,2426.3,2426.2,4.12167175]
[1750450019715,19.82425271,2426.3,2426.2,4.12167175]
[1750450020169,19.88418202,2426.3,2426.2,4.12167175]
[1750450020476,19.82448454,2426.3,2426.2,4.12167175]
[1750450020802,19.824484,2426.3,2426.2,4.12167175]
[1750450021004,19.82448087,2426.3,2426.2,4.12167175]
[1750450021367,19.8244849,2426.3,2426.2,4.12167175]
[1750450021712,17.52571897,2426.3,2426.2,5.47978663]
[1750450022008,17.52571098,2426.3,2426.2,5.47978663]
[1750450022602,17.52571098,2426.3,2426.2,5.42018663]
[1750450022792,17.52571098,2426.3,2426.2,4.12167175]
[1750450023108,17.52567308,2426.3,2426.2,4.12167175]
[1750450023304,17.141,2426.3,2426.2,4.12167175]
[1750450023605,17.52573677,2426.3,2426.2,4.12167175]
[1750450023766,17.52574093,2426.3,2426.2,4.12167175]
[1750450024108,17.141,2426.3,2426.2,4.12167175]
[1750450024296,17.52573732,2426.3,2426.2,4.12167175]
[1750450024496,17.52574031,2426.3,2426.2,4.18127175]
[1750450025190,17.52586032,2426.3,2426.2,4.18127175]
[1750450025514,17.52586032,2426.3,2426.2,8.92297175]
[1750450025715,17.52586032,2426.3,2426.2,8.86337175]
[1750450025911,17.52601109,2426.3,2426.2,8.86337175]
[1750450026611,17.52626943,2426.3,2426.2,8.86337175]
[1750450026823,17.91152895,2426.3,2426.2,8.86337175]
[1750450027109,17.91152012,2426.3,2426.2,8.86337175]
[1750450027318,17.91152096,2426.3,2426.2,8.86337175]
[1750450027497,17.97122096,2426.3,2426.2,8.86337175]
[1750450027702,17.97221724,2426.3,2426.2,8.86337175]
[1750450027917,17.91251724,2426.3,2426.2,8.86337175]
[1750450028308,17.91251111,2426.3,2426.2,8.86337175]
[1750450028503,17.91242973,2426.3,2426.2,8.86337175]
[1750450028816,0.38565879,2426.3,2426.2,2.0794188]
[1750450029038,1.913,2427.2,2427.0,4.12031314]
[1750450029334,1.913,2427.2,2427.1,4.12014338]
[1750450029554,2.29856325,2427.2,2427.1,4.53438944]
[1750450029760,9.82110473,2427.2,2427.1,4.53438944]
[1750450029899,9.82108257,2427.2,2427.1,4.53438944]
[1750450030100,9.82107487,2427.2,2427.1,4.53438944]
[1750450030327,9.43554109,2427.2,2427.1,4.53438944]
[1750450030531,9.43554109,2427.2,2427.1,4.12014338]
[1750450030728,0.0597,2427.1,2427.0,4.1202489]
[1750450030940,0.44524109,2427.1,2427.0,4.1202489]
[1750450031143,0.38554109,2427.1,2427.0,4.1202489]
[1750450031441,9.43354109,2427.1,2427.0,4.9775489]
[1750450031737,0.8273,2427.5,2427.3,4.11980389]
[1750450032037,9.8174094,2427.4,2427.3,4.11980389]
[1750450032238,0.8273,2427.5,2427.3,4.11980389]
[1750450032535,9.43269188,2427.4,2427.3,4.11980389]
[1750450032900,9.87699727,2427.4,2427.3,4.11980389]
[1750450033106,9.87599727,2427.4,2427.3,4.11980389]
[1750450033337,9.87600825,2427.4,2427.3,4.11980389]
[1750450033641,9.87504627,2427.4,2427.3,4.11980389]
[1750450033937,10.0597,2427.3,2427.1,4.12011577]
[1750450034241,0.0597,2427.0,2426.5,0.42216825]
[1750450034414,10.0597,2426.8,2426.6,4.1208284]
[1750450034616,17.51820921,2426.7,2426.6,4.1208284]
[1750450034822,19.43020921,2426.7,2426.6,4.1208284]
[1750450035009,19.43021032,2426.7,2426.6,4.1208284]
[1750450035340,10.38421032,2426.7,2426.6,4.1208284]
[1750450035636,19.43023475,2426.7,2426.6,4.1208284]
[1750450036132,19.046,2426.7,2426.6,4.1208284]
[1750450036336,19.045,2426.7,2426.6,5.08371746]
[1750450036844,19.045,2426.7,2426.6,5.02411746]
[1750450037858,9.045,2426.7,2426.6,5.02411746]
[1750450038146,0.0597,2427.2,2426.9,4.12031362]
[1750450038355,19.812829,2427.1,2427.0,4.12023609]
[1750450038562,19.81282894,2427.1,2427.0,4.12023609]
[1750450038760,19.81283819,2427.1,2427.0,4.12023609]
[1750450038939,10.7688377,2427.1,2427.0,4.12023609]
[1750450039139,10.0,2427.0,2426.9,4.12040473]
[1750450039321,10.76891611,2427.0,2426.9,4.12040473]
[1750450039649,10.38442437,2427.0,2426.9,4.12040473]
[1750450039856,10.76892018,2427.0,2426.9,4.12040473]
[1750450040053,10.83142018,2427.0,2426.5,0.40341163]
[1750450040354,17.90092018,2426.9,2426.8,4.12057775]
[1750450040648,17.5165005,2426.9,2426.8,4.12057775]
[1750450040855,17.90100511,2426.9,2426.8,4.12057775]
[1750450041022,17.51650461,2426.9,2426.8,4.12057775]
[1750450041456,17.51650446,2426.9,2426.8,4.12057775]
[1750450041753,19.42750446,2426.9,2426.8,10.93268546]
[1750450041958,17.51550446,2426.9,2426.8,10.16058546]
[1750450042124,17.51550446,2426.9,2426.8,8.86235271]
[1750450042643,17.90008501,2426.9,2426.8,8.86235271]
[1750450043153,17.90022862,2426.9,2426.8,8.86235271]
[1750450043450,17.90030553,2426.9,2426.8,8.86235271]
[1750450043657,17.900309,2426.9,2426.8,8.86235271]
[1750450043857,17.5156545,2426.9,2426.8,8.86235271]
[1750450044057,17.90030613,2426.9,2426.8,8.86235271]
[1750450044353,17.51565388,2426.9,2426.8,8.86235271]
[1750450044557,17.9003061,2426.9,2426.8,8.86235271]
[1750450044735,17.9002985,2426.9,2426.8,8.86235271]
[1750450045050,17.96280552,2426.9,2426.8,8.86235271]
[1750450045760,17.96280552,2426.9,2426.8,4.7417]
[1750450045962,17.9629884,2426.9,2426.8,4.7417]
[1750450046258,0.8273,2426.8,2426.6,8.86253168]
[1750450046464,7.57633258,2426.7,2426.6,8.86253168]
[1750450046954,7.51383258,2426.7,2426.6,8.86253168]
[1750450047456,17.129,2426.7,2426.6,8.86253168]
[1750450047668,17.96118966,2426.7,2426.6,8.86253168]
[1750450048060,19.80469149,2426.7,2426.6,8.86253168]
[1750450048364,19.80468048,2426.7,2426.6,8.86253168]
[1750450048567,19.80486018,2426.7,2426.6,8.86253168]
[1750450048727,19.80486091,2426.7,2426.6,8.86253168]
[1750450048927,19.80486082,2426.7,2426.6,8.86253168]
[1750450049127,19.42002058,2426.7,2426.6,4.12083168]
[1750450049355,19.80521842,2426.7,2426.6,4.12083168]
[1750450049554,19.80522078,2426.7,2426.6,4.12083168]
[1750450049861,19.42010756,2426.7,2426.6,4.12083168]
[1750450050051,19.80521537,2426.7,2426.6,4.12083168]
[1750450050660,19.42010972,2426.7,2426.6,4.12083168]
[1750450050864,10.35521731,2426.7,2426.6,4.12083168]
[1750450051358,9.97010759,2426.7,2426.6,4.12083168]
[1750450051661,10.35519527,2426.7,2426.6,4.12083168]
[1750450051865,10.35525893,2426.7,2426.6,4.12083168]
[1750450052026,10.35525894,2426.7,2426.6,4.12083168]
[1750450052367,10.41783995,2426.7,2426.6,4.12083168]
[1750450053164,1.4118,2426.5,2426.4,4.7417]
[1750450053365,0.6125,2426.4,2426.2,4.12153479]
[1750450053569,8.44663563,2426.3,2426.2,4.12153479]
[1750450054455,1.32069126,2426.3,2426.2,5.42003818]
[1750450054669,8.44669126,2426.3,2426.2,5.42003818]
[1750450054875,8.44669126,2426.3,2426.2,4.12153479]
[1750450055074,8.06134317,2426.3,2426.2,4.12153479]
[1750450055253,8.44670303,2426.3,2426.2,4.12153479]
[1750450055455,8.44649671,2426.3,2426.2,4.12153479]
[1750450055957,8.44648539,2426.3,2426.2,4.12153479]
[1750450056180,1.32048673,2426.3,2426.2,5.49913818]
[1750450056383,0.77048673,2426.3,2426.2,5.55653818]
[1750450056592,7.125,2426.4,2426.3,4.12150187]
[1750450056808,7.89546209,2426.4,2426.3,4.12150187]
[1750450057302,0.77046209,2426.4,2426.3,4.12150187]
[1750450057604,7.89546214,2426.4,2426.3,5.97565578]
[1750450057811,7.89546595,2426.4,2426.3,6.03305578]
[1750450058011,0.77045842,2426.4,2426.3,11.60615578]
[1750450058157,17.675,2426.5,2426.4,4.12133201]
[1750450058361,8.44543332,2426.5,2426.4,4.17873201]
[1750450058764,7.8953878,2426.5,2426.4,6.16363427]
[1750450058965,7.5101939,2426.5,2426.4,6.16363427]
[1750450059169,7.89537599,2426.5,2426.4,6.16363427]
[1750450059469,7.89538369,2426.5,2426.4,6.16363427]
[1750450060772,7.89552011,2426.5,2426.4,6.10623427]
[1750450061104,7.51033032,2426.5,2426.4,4.12133201]
[1750450061307,8.44566878,2426.5,2426.4,4.12133201]
[1750450062019,10.92266878,2426.5,2426.4,4.12133201]
[1750450062409,8.44566878,2426.5,2426.4,4.12133201]
[1750450062606,8.44570725,2426.5,2426.4,4.12133201]
[1750450063108,9.80170154,2426.5,2426.4,4.12133201]
[1750450063308,9.80170154,2426.5,2426.4,5.4197854]
[1750450063621,0.38536308,2426.5,2426.4,6.2167854]
[1750450063800,0.38536308,2426.5,2426.4,6.25799421]
[1750450064120,19.029,2426.8,2426.7,4.12082251]
[1750450064422,19.80021828,2426.8,2426.7,4.12082251]
[1750450064733,19.80020901,2426.8,2426.7,4.12082251]
[1750450064937,19.80020931,2426.8,2426.7,4.12082251]
[1750450065630,19.8002087,2426.8,2426.7,4.12082251]
[1750450065802,19.80020817,2426.8,2426.7,4.12082251]
[1750450066004,19.80021974,2426.8,2426.7,4.12082251]
[1750450066527,19.80016673,2426.8,2426.7,4.17822251]
[1750450066713,19.80016673,2426.8,2426.7,4.83851001]
[1750450067031,19.80017306,2426.8,2426.7,4.78111001]
[1750450067225,19.029,2426.8,2426.7,4.78111001]
[1750450067427,19.41459386,2426.8,2426.7,4.78111001]
[1750450067610,19.80018654,2426.8,2426.7,4.78111001]
[1750450067813,19.79919202,2426.8,2426.7,4.12082251]
[1750450068223,19.79919976,2426.8,2426.7,4.12082251]
[1750450068530,19.79920507,2426.8,2426.7,4.12082251]
[1750450068933,19.79920082,2426.8,2426.7,4.12082251]
[1750450069244,19.7992141,2426.8,2426.7,4.12082251]
[1750450069441,19.79920785,2426.8,2426.7,4.12082251]
[1750450069828,19.79922489,2426.8,2426.7,4.12082251]
[1750450070028,10.77122489,2426.8,2426.7,4.12082251]
[1750450070242,19.79822489,2426.8,2426.7,4.12082251]
[1750450070731,19.79822224,2426.8,2426.7,4.12082251]
[1750450070906,19.79722224,2426.8,2426.7,4.12082251]
[1750450071445,19.79723486,2426.8,2426.7,4.12082251]
[1750450071934,19.79723486,2426.8,2426.6,4.12094854]
[1750450071935,0.6075,2426.7,2426.6,4.12099233]
[1750450072235,1.37873486,2426.7,2426.6,4.12099233]
[1750450072406,1.37878127,2426.7,2426.6,4.12099233]
[1750450072606,0.93563859,2426.7,2426.6,4.12099233]
[1750450072834,1.32127114,2426.7,2426.6,4.12099233]
[1750450073135,1.32127548,2426.7,2426.6,4.12099233]
[1750450073341,9.79627548,2426.7,2426.6,4.12099233]
[1750450073516,9.79633704,2426.7,2426.6,4.12099233]
[1750450073711,9.79633738,2426.7,2426.6,4.12099233]
[1750450073916,9.79633562,2426.7,2426.6,4.12099233]
[1750450074125,0.77133562,2426.7,2426.6,4.12099233]
[1750450074340,9.79533562,2426.7,2426.6,4.12099233]
[1750450074529,9.79536885,2426.7,2426.6,4.12099233]
[1750450074722,9.85286885,2426.7,2426.6,4.12099233]
[1750450075148,0.77136885,2426.7,2426.6,4.12099233]
[1750450075452,7.88836885,2426.7,2426.6,4.94520691]
[1750450075664,7.50263589,2426.7,2426.6,4.94520691]
[1750450075825,7.50263589,2426.7,2426.6,9.68690691]
[1750450075826,7.117,2426.7,2426.6,9.68690691]
[1750450076028,7.88827074,2426.7,2426.6,9.68690691]
[1750450076432,0.77133422,2426.7,2426.6,10.54920691]
[1750450076638,17.116,2426.8,2426.7,4.12082251]
[1750450076837,17.88728324,2426.8,2426.7,5.5779708]
[1750450077049,0.38564019,2426.8,2426.7,5.5779708]
[1750450077237,7.88727917,2426.8,2426.7,5.5779708]
[1750450077419,7.50164019,2426.8,2426.7,5.5779708]
[1750450077625,0.77126116,2426.8,2426.7,5.5779708]
[1750450077853,1.901,2427.2,2427.1,4.12014338]
[1750450078078,2.477,2427.4,2427.3,4.11980389]
[1750450078256,15.43805053,2427.4,2427.1,4.12004199]
[1750450078456,10.0,2427.2,2427.1,4.12014338]
[1750450078625,11.06009572,2427.2,2427.1,4.12014338]
[1750450078825,11.06010423,2427.2,2427.1,4.12014338]
[1750450079026,11.0600333,2427.2,2427.1,4.12014338]
[1750450079875,11.00247397,2427.2,2427.1,4.12014338]
[1750450080041,1.901,2427.3,2427.2,4.11994851]
[1750450080243,10.0,2427.2,2427.1,4.12004605]
[1750450080444,11.05950767,2427.2,2427.1,4.12004605]
[1750450080645,11.05950767,2427.2,2427.0,4.12022748]
[1750450080931,0.77077092,2427.1,2427.0,4.12022748]
[1750450081143,0.77079429,2427.1,2427.0,4.12022748]
[1750450081348,10.0575,2427.2,2427.1,4.12014338]
[1750450081669,10.67414703,2427.2,2427.1,4.12014338]
[1750450081873,10.67414703,2427.2,2427.0,8.86192748]
[1750450081874,0.0575,2427.1,2427.0,8.86191245]
[1750450082076,17.94225457,2427.1,2427.0,4.7417]
[1750450082241,21.48121475,2427.1,2427.0,4.7417]
[1750450082442,21.48121475,2427.1,2426.6,4.12091542]
[1750450082443,12.477,2427.0,2426.6,4.12085273]
[1750450082643,7.88373445,2426.9,2426.6,4.12085273]
[1750450082843,2.72933474,2426.8,2426.6,4.12085273]
[1750450083039,7.112,2426.7,2426.6,4.12088841]
[1750450083240,7.88290923,2426.7,2426.6,4.12088841]
[1750450083580,10.0575,2426.6,2426.5,4.7417]
[1750450083732,10.44295509,2426.6,2426.5,8.86286216]
[1750450083930,10.44295509,2426.6,2426.5,4.12116216]
[1750450084146,10.82843536,2426.6,2426.5,4.12116216]
[1750450084649,10.77093536,2426.6,2426.5,4.12116216]
[1750450084962,10.82843536,2426.6,2426.5,4.12116216]
[1750450085350,10.77143889,2426.6,2426.5,4.12116216]
[1750450085691,10.77144643,2426.6,2426.5,4.12116216]
[1750450085871,9.78344643,2426.6,2426.5,4.12116216]
[1750450086274,0.77144827,2426.6,2426.5,4.12116216]
[1750450086459,7.11,2426.6,2426.5,5.00341051]
[1750450086663,10.38570564,2426.6,2426.5,5.00341051]
[1750450086851,17.88141119,2426.6,2426.5,5.00341051]
[1750450087052,17.88141146,2426.6,2426.5,4.12116216]
[1750450087575,17.88142259,2426.6,2426.5,4.12116216]
[1750450088195,17.8814289,2426.6,2426.5,4.12116216]
[1750450088493,17.88148962,2426.6,2426.5,4.12116216]
[1750450089044,7.49578389,2426.6,2426.5,4.12116216]
[1750450089242,0.77156544,2426.6,2426.5,4.90636216]
[1750450089484,0.38578389,2426.6,2426.5,5.78861051]
[1750450089854,17.109,2426.8,2426.7,4.12082251]
[1750450090149,7.88057278,2426.8,2426.7,4.12082251]
[1750450090497,4.378,2426.9,2426.8,4.12065271]
[1750450090792,12.25856468,2426.9,2426.8,4.12065271]
[1750450091099,11.87278234,2426.9,2426.8,4.12065271]
[1750450091242,0.7715524,2426.9,2426.8,4.12065271]
[1750450091449,2.477,2427.3,2427.2,4.11997363]
[1750450091676,21.87175117,2427.3,2427.2,4.11997363]
[1750450091994,1.00317499,2427.3,2427.2,4.11997363]
[1750450092189,9.78067526,2427.3,2427.2,4.11997363]
[1750450092391,9.78064281,2427.3,2427.2,4.11997363]
[1750450092629,0.38583776,2427.3,2427.2,4.11997363]
[1750450092847,7.49341404,2427.3,2427.2,4.11997363]
[1750450093111,7.49341421,2427.3,2427.2,4.11997363]
[1750450093322,3.2867,2427.7,2427.5,4.11946446]
[1750450093480,3.2867,2427.7,2427.2,4.11995976]
[1750450093481,2.7682,2427.7,2427.6,4.11929477]
[1750450093680,20.87729166,2427.7,2427.5,4.11936123]
[1750450093878,11.00208288,2427.6,2427.5,4.11936123]
[1750450094123,11.00201693,2427.6,2427.5,4.11936123]
[1750450094314,18.10795768,2427.6,2427.5,4.11936123]
[1750450094692,17.72260376,2427.6,2427.5,4.11936123]
[1750450094892,18.10796652,2427.6,2427.5,4.11936123]
[1750450095092,19.62361468,2427.6,2427.5,4.11936123]
[1750450095295,20.00896984,2427.6,2427.5,4.11936123]
[1750450095534,20.00896255,2427.6,2427.5,4.11936123]
[1750450095883,20.00891032,2427.6,2427.5,4.11936123]
[1750450096109,7.49034988,2427.6,2427.5,4.11936123]
[1750450096322,7.87566771,2427.6,2427.5,4.11936123]
[1750450096519,7.87566771,2427.6,2427.2,4.11997363]
[1750450096520,0.0604,2427.5,2427.2,4.11997363]
[1750450096823,0.8122,2427.2,2427.0,4.12022745]
[1750450097021,9.77487942,2427.1,2427.0,4.12022745]
[1750450097823,9.77488106,2427.1,2427.0,4.12022745]
[1750450098320,9.77488106,2427.1,2426.5,0.82424835]
[1750450098321,0.782,2427.0,2426.8,4.12052303]
[1750450098526,7.93336997,2426.9,2426.8,4.12052303]
[1750450098819,9.83437758,2426.9,2426.8,4.12052303]
[1750450099023,0.782,2427.0,2426.9,4.12048292]
[1750450099318,20.61619534,2427.0,2426.9,4.12048292]
[1750450099825,19.8464,2427.0,2426.9,4.12048292]
[1750450100022,10.0,2427.0,2426.9,4.12048292]
[1750450100230,6.986,2427.0,2426.9,4.12048292]
[1750450100820,1.901,2427.1,2427.0,4.12025604]
[1750450101127,18.886,2427.1,2427.0,4.12025604]
[1750450101891,21.363,2427.1,2427.0,4.12025604]
[1750450102109,0.782,2426.8,2426.5,4.12114711]
[1750450102439,0.782,2426.8,2426.5,4.12107777]
[1750450102440,17.81544096,2426.7,2426.5,4.12107777]
[1750450102733,17.0454,2426.7,2426.5,4.12102879]
[1750450103031,0.77012298,2426.6,2426.5,4.12102879]
[1750450103234,2.28606138,2426.6,2426.4,4.12121043]
[1750450103532,0.0604,2426.4,2426.2,4.1215734]
[1750450103744,7.81430101,2426.3,2426.2,4.12167175]
[1750450104348,9.65490101,2426.3,2426.2,4.12167175]
[1750450104655,9.38179484,2426.3,2426.2,4.12167175]
[1750450104855,8.99689188,2426.3,2426.2,4.12167175]
[1750450105150,9.3817909,2426.3,2426.2,4.12167175]
[1750450105507,9.38179473,2426.3,2426.2,4.12167175]
[1750450105743,9.38179329,2426.3,2426.2,4.12167175]
[1750450106204,9.38155978,2426.3,2426.2,4.12167175]
[1750450106542,9.38156425,2426.3,2426.2,4.12167175]
[1750450106927,8.99677859,2426.3,2426.2,4.12167175]
[1750450107127,9.38157474,2426.3,2426.2,4.12167175]
[1750450107339,9.38143717,2426.3,2426.2,4.12167175]
[1750450107543,9.44183717,2426.3,2426.2,4.12167175]
[1750450107841,0.8426,2426.2,2425.5,0.8241]
[1750450108053,7.81279402,2426.1,2426.0,4.12201154]
[1750450108349,7.81279402,2426.1,2425.8,4.12228362]
[1750450108350,10.0,2426.0,2425.8,4.12228362]
[1750450108517,7.75240865,2425.9,2425.3,0.7801]
[1750450108718,10.0,2425.7,2425.6,4.12269129]
[1750450108927,10.82986387,2425.7,2425.6,4.12269129]
[1750450109128,10.0604,2425.7,2425.6,4.12269129]
[1750450109349,0.0604,2425.6,2425.2,4.12321956]
[1750450109651,10.0604,2425.4,2425.2,4.12321956]
[1750450109842,10.0,2425.2,2425.0,4.12371134]
[1750450110041,10.0,2425.2,2425.1,4.12354129]
[1750450110343,10.0,2425.2,2424.3,14.68680177]
[1750450110344,0.7673,2425.1,2424.3,1.1911634]
[1750450110543,0.0604,2424.9,2424.7,4.12410069]
[1750450110724,8.875,2424.8,2424.7,4.12410069]
[1750450111055,0.0604,2424.6,2424.2,4.17317085]
[1750450111225,7.0424,2424.5,2424.4,4.12473189]
[1750450111824,0.0604,2424.4,2424.3,4.12480746]
[1750450112420,0.0604,2424.4,2424.2,4.17317085]
[1750450112421,10.0604,2424.4,2424.2,4.17317085]
[1750450112627,0.7673,2424.6,2424.2,4.12506776]
[1750450112628,18.9364,2424.3,2424.2,4.12506776]
[1750450113352,10.0,2424.2,2424.1,4.1251557]
[1750450113560,10.0,2424.2,2424.0,4.12534982]
[1750450113561,8.9364,2424.3,2424.2,4.12507218]
[1750450114169,8.9364,2424.3,2424.1,4.12516779]
[1750450114359,8.9364,2424.3,2424.2,4.12507218]
[1750450114960,18.9364,2424.3,2424.2,4.12507218]
[1750450115934,0.0604,2424.2,2424.0,4.12534905]
[1750450116139,10.0,2424.0,2423.9,4.12549149]
[1750450116340,17.0434,2424.1,2423.8,4.12561525]
[1750450116341,7.0434,2424.1,2423.8,4.12561525]
[1750450116647,7.0434,2424.0,2423.9,4.12558273]
[1750450116841,6.983,2424.0,2423.8,4.12565938]
[1750450117050,0.0604,2423.9,2423.8,4.12565938]
[1750450118424,6.983,2424.0,2423.9,4.12558273]
[1750450118656,7.0434,2424.0,2423.9,4.12558273]
[1750450119871,0.0604,2424.0,2423.9,4.12558273]
[1750450120055,8.9394,2424.0,2423.9,4.12558273]
[1750450120233,18.9394,2424.0,2423.9,4.12558273]
[1750450121830,18.879,2424.0,2423.9,4.12558273]
[1750450122030,18.878,2424.0,2423.9,4.12558273]
[1750450122769,18.9384,2424.0,2423.9,4.12558273]
[1750450122975,10.0604,2424.0,2423.9,4.12558273]
[1750450123281,18.9384,2424.0,2423.9,4.12558273]
[1750450123778,19.31856956,2424.0,2423.9,4.12558273]
[1750450124746,19.31857599,2424.0,2423.9,4.12558273]
[1750450124943,19.31857144,2424.0,2423.8,4.12563124]
[1750450125285,8.878,2423.9,2423.8,4.12563124]
[1750450125991,9.25818249,2423.9,2423.8,4.12563124]
[1750450126378,9.25921074,2423.9,2423.8,4.12563124]
[1750450127045,9.25921108,2423.9,2423.8,4.12563124]
[1750450127245,9.25921097,2423.9,2423.8,4.12563124]
[1750450127497,8.878,2423.9,2423.8,4.12563124]
[1750450127643,9.25920853,2423.9,2423.8,4.12563124]
[1750450128392,9.25921101,2423.9,2423.8,4.12563124]
[1750450129231,19.70104467,2423.9,2423.7,4.7417]
[1750450129491,19.70104467,2423.9,2423.4,4.12636693]
[1750450129492,0.82409753,2423.8,2423.4,4.12636693]
[1750450129691,10.0,2423.6,2423.2,4.7417]
[1750450129847,7.0416,2423.5,2423.3,4.12650766]
[1750450130047,2.27730774,2423.4,2423.3,4.12650766]
[1750450130280,2.6596215,2423.4,2423.3,4.12650766]
[1750450130461,2.65962763,2423.4,2423.2,8.86840541]
[1750450130648,7.80522763,2423.3,2423.2,8.86840541]
[1750450130890,7.80522763,2423.3,2423.2,4.12670541]
[1750450131195,7.42292272,2423.3,2423.2,4.12670541]
[1750450131345,7.8052496,2423.3,2423.2,4.12670541]
[1750450131746,7.36332267,2423.3,2423.2,4.12670541]
[1750450131972,7.36432267,2423.3,2423.2,4.12670541]
[1750450132340,7.36332267,2423.3,2423.2,4.12670541]